fUSD/lending_fUSD_20260311
["ID","MTS","AMOUNT","RATE_DAILY","PERIOD"]
[408196640,1773212552593,500.0,9.5e-05,3]
[408196706,1773212601237,-162.0,0.0001369,2]
[408196707,1773212601265,-161.0,0.0001369,2]
[408196747,1773212846813,596.29210205,8.6e-05,2]
[408196748,1773212849501,500.0,8.6e-05,2]
[408196749,1773212850018,500.0,8.6e-05,2]
[408196763,1773213031909,-162.0,0.0001354,3]
[408196764,1773213031920,-162.0,0.0001354,3]
[408196766,1773213031930,-2139.64215827,0.0001439,2]
[408196768,1773213031941,-2104.21116482,0.0001439,2]
[408196769,1773213031951,-180.65,0.00014612,2]
[408196770,1773213031961,-169.3941491,0.00014892,2]
[408196771,1773213031990,-1000.0,0.00014892,2]
[408196772,1773213032005,-30.6058509,0.00014892,2]
[408196773,1773213032015,-252.0,0.00014893,2]
[408196774,1773213032024,-300.0,0.00014893,2]
[408196775,1773213032034,-151.0,0.00014894,2]
[408196776,1773213032043,-152.32156984,0.00014894,2]
[408196777,1773213032056,-66.07257926,0.00014894,2]
[408196778,1773213032081,-183.92742074,0.00014894,2]
[408196779,1773213032103,-5000.0,0.00014894,2]
[408196781,1773213032116,-374.7733,0.00014894,2]
[408196783,1773213032127,-194.5969468,0.00014894,2]
[408196785,1773213032137,-2378.57,0.00014894,2]
[408196787,1773213032147,-904.0041,0.00014933,2]
[408196789,1773213032156,-500.0,0.00015,30]
[408196791,1773213032166,-500.0,0.00015,30]
[408196793,1773213032175,-500.0,0.00015,30]
[408196795,1773213032184,-508.33662687,0.00015,30]
[408196797,1773213032193,-500.0,0.00015,30]
[408196798,1773213032203,-904.00581093,0.00015,30]
[408196801,1773213032212,-891.77974006,0.00015,30]
[408196802,1773213032221,-500.0,0.00015,30]
[408196804,1773213032230,-500.0,0.00015,30]
[408196806,1773213032239,-500.0,0.00015,30]
[408196808,1773213032249,-500.0,0.00015,30]
[408196810,1773213032259,-678.73613672,0.00015,30]
[408196812,1773213032268,-500.0,0.00015,30]
[408196814,1773213032278,-500.0,0.00015,30]
[408196816,1773213032287,-500.0,0.00015,30]
[408196819,1773213032296,-500.0,0.00015132,2]
[408196820,1773213032305,-500.0,0.00015132,2]
[408196823,1773213032314,-500.0,0.00015132,2]
[408196825,1773213032323,-500.0,0.00015132,2]
[408196826,1773213032333,-500.0,0.00015132,2]
[408196829,1773213032342,-500.0,0.00015132,2]
[408196831,1773213032352,-500.0,0.00015132,2]
[408196833,1773213032360,-500.0,0.00015132,2]
[408196835,1773213032369,-500.0,0.00015132,2]
[408196837,1773213032378,-10068.51071376,0.00015563,2]
[408196839,1773213032387,-724.46,0.00015569,2]
[408196841,1773213032396,-168.350623,0.00015586,7]
[408196843,1773213032404,-150.0,0.00015695,2]
[408196845,1773213032416,-150.0,0.00015841,2]
[408196847,1773213032426,-250.0,0.00015841,2]
[408196849,1773213032435,-150.0,0.00015841,2]
[408196851,1773213032444,-150.0,0.00015841,2]
[408196853,1773213032455,-261.27450762,0.00015841,2]
[408196855,1773213032467,-500.0,0.00015841,2]
[408196856,1773213032489,-500.0,0.00015841,2]
[408196857,1773213032504,-253.69312086,0.00015896,2]
[408196858,1773213032513,-150.0,0.00015896,2]
[408196859,1773213032523,-500.0,0.00015896,2]
[408196860,1773213032532,-645.57871635,0.00015896,2]
[408196861,1773213032541,-150.0,0.00015951,2]
[408196862,1773213032551,-500.0,0.00015951,2]
[408196863,1773213032560,-150.0,0.00016005,2]
[408196864,1773213032569,-400.0,0.00016005,2]
[408196865,1773213032579,-3503.19177912,0.00016016,2]
[408196866,1773213032588,-150.0,0.0001606,2]
[408196867,1773213032600,-1644.25726702,0.00016073,2]
[408196868,1773213032610,-163.19407865,0.00016115,2]
[408196869,1773213032619,-500.0,0.00016115,2]
[408196870,1773213032628,-500.0,0.00016115,2]
[408196871,1773213032641,-500.0,0.00016115,2]
[408196872,1773213032651,-500.0,0.00016115,2]
[408196873,1773213032660,-500.0,0.00016115,2]
[408196874,1773213032673,-500.0,0.00016115,2]
[408196875,1773213032682,-500.0,0.00016115,2]
[408196876,1773213032692,-500.0,0.00016115,2]
[408196877,1773213032701,-500.0,0.00016115,2]
[408196878,1773213032710,-500.0,0.00016115,2]
[408196879,1773213032722,-500.0,0.00016115,2]
[408196880,1773213032746,-500.0,0.00016115,2]
[408196881,1773213032768,-500.0,0.00016115,2]
[408196882,1773213032777,-500.0,0.00016115,2]
[408196883,1773213032786,-445.02034207,0.00016115,2]
[408196884,1773213032796,-500.0,0.00016115,2]
[408196885,1773213032809,-500.0,0.00016115,2]
[408196886,1773213032818,-500.0,0.00016115,2]
[408196887,1773213032829,-485.32992184,0.00016115,2]
[408196888,1773213032838,-500.0,0.00016115,2]
[408196889,1773213032848,-500.0,0.00016115,2]
[408196890,1773213032859,-500.0,0.00016115,2]
[408196891,1773213032875,-500.0,0.00016115,2]
[408196892,1773213032885,-500.0,0.00016115,2]
[408196893,1773213032896,-500.0,0.00016115,2]
[408196894,1773213032906,-342.74674151,0.00016115,2]
[408196895,1773213032915,-9999.99,0.00016116,2]
[408196896,1773213032924,-150.99,0.00016116,2]
[408196897,1773213032935,-21703.56,0.00016116,2]
[408196898,1773213032947,-9999.99,0.00016116,2]
[408196899,1773213032956,-547.09,0.00016116,2]
[408196900,1773213032967,-35666.82894707,0.00016116,2]
[408196901,1773213032982,-30386.12629883,0.00016116,2]
[408196902,1773213032995,-85439.37232232,0.00016116,2]
[408196903,1773213033007,-1014.1262929,0.00016116,2]
[408196915,1773213040240,-151.0,0.00016116,2]
[408196916,1773213040250,-21929.53613888,0.00016116,2]
[408196917,1773213040259,-150.99,0.00016116,2]
[408196918,1773213040271,-499.99,0.00016116,2]
[408196919,1773213040281,-9999.99,0.00016116,2]
[408196920,1773213040291,-299.99,0.00016116,4]
[408196921,1773213040300,-8288.36,0.00016116,2]
[408196922,1773213040310,-325.12,0.00016116,2]
[408196923,1773213040319,-589.24209404,0.00016173,2]
[408196924,1773213040328,-500.0,0.00016173,2]
[408196925,1773213040338,-219.45673384,0.00016173,2]
[408196926,1773213040347,-500.0,0.00016173,2]
[408196927,1773213040357,-500.0,0.00016173,2]
[408196928,1773213040367,-500.53605254,0.00016173,2]
[408196929,1773213040376,-500.0,0.00016173,2]
[408196930,1773213040385,-500.0,0.00016173,2]
[408196931,1773213040395,-500.0,0.00016173,2]
[408196932,1773213040404,-500.0,0.00016173,2]
[408196933,1773213040414,-506.03669351,0.00016173,2]
[408196934,1773213040426,-150.0,0.00016182,2]
[408196935,1773213040436,-420.0,0.00016301,2]
[408196936,1773213040445,-724.46,0.00016347,2]
[408196937,1773213040455,-419.0,0.00016381,2]
[408196938,1773213040465,-200.87563366,0.00016438,2]
[408196939,1773213040477,-3503.19177909,0.00016448,2]
[408196940,1773213040486,-500.0,0.00016721,2]
[408196941,1773213040496,-500.0,0.00016721,2]
[408196942,1773213040505,-3503.19177909,0.00016879,2]
[408196943,1773213040515,-320.29648094,0.00016889,2]
[408196944,1773213040524,-150.0,0.00016954,2]
[408196945,1773213040534,-500.0,0.00016954,2]
[408196946,1773213040544,-150.0,0.00016954,2]
[408196947,1773213040553,-500.0,0.00016954,2]
[408196948,1773213040563,-150.0,0.00016954,2]
[408196949,1773213040574,-150.0,0.00016954,2]
[408196950,1773213040583,-150.0,0.00016954,2]
[408196951,1773213040593,-150.0,0.00016954,2]
[408196952,1773213040606,-256.0,0.0001697,2]
[408196953,1773213040617,-1399.08584221,0.00016996,2]
[408196954,1773213040627,-503.0,0.00017,2]
[408196955,1773213040639,-151.14564353,0.00017009,2]
[408196956,1773213040649,-500.0,0.00017009,2]
[408196957,1773213040659,-250.24087544,0.00017009,2]
[408196958,1773213040669,-500.0,0.00017009,2]
[408196959,1773213040679,-150.0,0.00017009,2]
[408196960,1773213040688,-202.59725118,0.00017009,2]
[408196961,1773213040698,-643.0,0.00017059,2]
[408196962,1773213040707,-494.0,0.00017059,2]
[408196963,1773213040716,-255.80078176,0.00017064,2]
[408196964,1773213040726,-237.03813108,0.00017064,2]
[408196965,1773213040735,-150.0,0.00017064,2]
[408196966,1773213040744,-743.0,0.00017093,2]
[408196967,1773213040754,-150.0,0.00017118,2]
[408196968,1773213040763,-724.46,0.00017126,2]
[408196969,1773213040773,-150.0,0.00017173,2]
[408196970,1773213040782,-250.0,0.00017228,2]
[408196971,1773213040792,-1134.0,0.00017228,2]
[408196972,1773213040801,-248.96637254,0.0001727,2]
[408196973,1773213040811,-446.22118414,0.00017281,2]
[408196974,1773213040821,-3503.19177909,0.00017311,2]
[408196975,1773213040831,-190.0,0.00017372,2]
[408196976,1773213040840,-714.0,0.00017406,2]
[408196977,1773213040849,-3503.19177909,0.00017742,2]
[408196978,1773213040859,-587.0,0.00017843,2]
[408196979,1773213040868,-724.46,0.00017904,2]
[408196980,1773213040878,-3158.97101355,0.00018,2]
[408196981,1773213040887,-582.17937698,0.00018173,2]
[408196982,1773213040897,-3503.19177909,0.00018174,2]
[408196983,1773213040907,-572.46268231,0.00018265,2]
[408196984,1773213041073,-270.24731769,0.00018265,2]
[408196985,1773213041083,-10481.56303851,0.00018265,2]
[408196986,1773213041095,-47612.06696149,0.00018265,2]
[408196987,1773213041104,-500.0,0.00018273,2]
[408196988,1773213041114,-500.0,0.00018273,2]
[408196989,1773213041123,-500.0,0.00018273,2]
[408196990,1773213041133,-500.0,0.00018273,2]
[408196991,1773213041142,-31557.38,0.00018275,2]
[408196992,1773213041151,-500.0,0.00018287,2]
[408196993,1773213041162,-4399.57,0.00018326,2]
[408196994,1773213041171,-582.17937696,0.00018365,2]
[408196995,1773213041180,-151.31,0.00018489,2]
[408196996,1773213041190,-582.17937696,0.00018557,2]
[408196997,1773213041199,-3503.19177909,0.00018605,2]
[408196998,1773213041208,-724.46,0.00018683,2]
[408196999,1773213041218,-150.0,0.00018726,5]
[408197000,1773213041227,-150.0,0.00018726,5]
[408197001,1773213041236,-150.0,0.00018726,5]
[408197002,1773213041246,-500.0,0.00018726,2]
[408197003,1773213041256,-295.15547733,0.00018726,2]
[408197004,1773213041265,-582.17937696,0.00018749,2]
[408197005,1773213041275,-500.0,0.00018781,2]
[408197006,1773213041284,-2025.0,0.000188,2]
[408197007,1773213041293,-512.63986513,0.00018836,2]
[408197008,1773213041302,-501.15105825,0.00018888,2]
[408197009,1773213041311,-1265.09428998,0.00018999,2]
[408197010,1773213041320,-500.0,0.00018999,2]
[408197011,1773213041563,-578.20924308,0.00018999,2]
[408197012,1773213041573,-174.61919141,0.00018999,2]
[408197013,1773213041583,-504.13704332,0.00019,2]
[408197014,1773213041594,-500.0,0.0001901,2]
[408197015,1773213041604,-500.97367586,0.0001901,2]
[408197016,1773213041614,-3503.19177909,0.00019037,2]
[408197017,1773213041623,-500.0,0.00019054,2]
[408197018,1773213041633,-500.0,0.00019064,2]
[408197019,1773213041643,-500.0,0.00019109,2]
[408197020,1773213041652,-500.0,0.00019164,2]
[408197021,1773213041662,-2000.0,0.000192,2]
[408197022,1773213041673,-160.0,0.00019202,2]
[408197023,1773213041682,-172.95802059,0.00019202,2]
[408197024,1773213041695,-500.0,0.00019219,2]
[408197025,1773213041705,-485.24,0.00019234,2]
[408197026,1773213041715,-533.36,0.00019238,2]
[408197027,1773213041724,-500.0,0.00019274,2]
[408197028,1773213041734,-350.0,0.00019307,2]
[408197029,1773213041743,-500.0,0.00019329,2]
[408197030,1773213041753,-168.0,0.00019354,2]
[408197031,1773213041763,-500.0,0.00019384,2]
[408197032,1773213041772,-500.0,0.00019439,2]
[408197033,1773213041781,-166.66,0.00019441,2]
[408197034,1773213041791,-3503.19177909,0.00019468,2]
[408197035,1773213041800,-500.0,0.00019494,2]
[408197036,1773213041810,-485.24,0.00019508,2]
[408197037,1773213041819,-533.36,0.00019512,2]
[408197038,1773213041828,-823.0,0.0001953,2]
[408197039,1773213041838,-181.08010149,0.00019547,2]
[408197040,1773213041848,-500.0,0.00019549,2]
[408197041,1773213041857,-500.0,0.00019604,2]
[408197042,1773213041867,-1000.0,0.00019634,2]
[408197043,1773213041877,-301.74301211,0.00019641,2]
[408197044,1773213041886,-200.0,0.0001966,2]
[408197045,1773213041895,-4993.172,0.00019676,2]
[408197046,1773213041905,-179.348,0.00019676,2]
[408197047,1773213041914,-2774.0,0.00019683,2]
[408197048,1773213041923,-800.0,0.00019683,2]
[408197049,1773213041932,-2000.0,0.00019703,2]
[408197050,1773213041942,-150.0,0.00019737,2]
[408197051,1773213041952,-150.0,0.00019766,2]
[408197052,1773213041961,-168.0,0.00019779,2]
[408197053,1773213041971,-277.30259241,0.0001978,2]
[408197054,1773213041980,-485.24,0.00019782,2]
[408197055,1773213041989,-1000.0,0.00019786,2]
[408197056,1773213041998,-533.36,0.00019786,2]
[408197057,1773213042007,-489.17919,0.000198,2]
[408197058,1773213042016,-489.1792,0.000198,2]
[408197059,1773213042025,-2500.0,0.000198,2]
[408197060,1773213042034,-200.0,0.0001989,2]
[408197061,1773213042044,-11287.3641,0.000199,2]
[408197062,1773213042053,-1000.0,0.000199,2]
[408197063,1773213042062,-551.4252449,0.000199,2]
[408197064,1773213042072,-160.61307676,0.000199,2]
[408197065,1773213042081,-177.33230873,0.000199,2]
[408197066,1773213042090,-3503.19177909,0.000199,2]
[408197067,1773213042099,-8043.58887275,0.000199,2]
[408197068,1773213042109,-350.0,0.00019941,2]
[408197069,1773213042118,-350.0,0.00019956,2]
[408197070,1773213042127,-6260.0,0.00019973,2]
[408197071,1773213042136,-500.0,0.00019973,2]
[408197072,1773213042145,-500.81396462,0.00019973,2]
[408197073,1773213042154,-621.0,0.00019973,2]
[408197074,1773213042163,-1880.1330406,0.00019988,2]
[408197075,1773213042174,-409.8902603,0.0001999,2]
[408197076,1773213042182,-409.8902603,0.0001999,2]
[408197077,1773213042191,-409.8902603,0.0001999,2]
[408197078,1773213042200,-151.0,0.00019997,2]
[408197079,1773213042210,-151.0,0.00019997,2]
[408197080,1773213042219,-504.64296701,0.00019998,2]
[408197081,1773213042228,-261.45915393,0.00019998,2]
[408197082,1773213042237,-500.0,0.00019998,2]
[408197083,1773213042247,-500.0,0.00019998,2]
[408197084,1773213042256,-500.0,0.00019998,2]
[408197085,1773213042266,-500.0,0.00019998,2]
[408197086,1773213042275,-500.0,0.00019998,2]
[408197087,1773213042284,-500.0,0.00019998,2]
[408197088,1773213042293,-300.0,0.00019999,2]
[408197089,1773213042302,-300.0,0.00019999,2]
[408197090,1773213042311,-666.0,0.00019999,2]
[408197091,1773213042320,-300.0,0.00019999,2]
[408197092,1773213042329,-300.0,0.00019999,2]
[408197093,1773213042339,-666.0,0.00019999,2]
[408197094,1773213042348,-1058.20411011,0.00019999,5]
[408197095,1773213042357,-3217.7250148,0.00019999,2]
[408197096,1773213042366,-500.0,0.00019999,2]
[408197097,1773213042375,-500.0,0.00019999,2]
[408197098,1773213042384,-500.0,0.00019999,2]
[408197099,1773213042394,-500.0,0.00019999,2]
[408197100,1773213042403,-1048.80405626,0.00019999,5]
[408197101,1773213042412,-1683.51186893,0.00019999,5]
[408197102,1773213042420,-8526.6453025,0.00019999,2]
[408197103,1773213042430,-7244.30131,0.00019999,2]
[408197104,1773213042439,-1077.92009856,0.00019999,5]
[408197105,1773213042448,-500.0,0.00019999,2]
[408197106,1773213042457,-505.20001815,0.00019999,2]
[408197107,1773213042467,-500.0,0.00019999,2]
[408197109,1773213042476,-500.0,0.00019999,2]
[408197110,1773213042485,-500.0,0.00019999,2]
[408197112,1773213042495,-500.0,0.00019999,2]
[408197113,1773213042504,-500.0,0.00019999,2]
[408197114,1773213042513,-500.0,0.00019999,2]
[408197115,1773213042522,-500.0,0.00019999,2]
[408197116,1773213042531,-500.0,0.00019999,2]
[408197117,1773213042540,-500.0,0.00019999,2]
[408197118,1773213042550,-500.0,0.00019999,2]
[408197119,1773213042559,-500.0,0.00019999,2]
[408197120,1773213042568,-500.0,0.00019999,2]
[408197121,1773213042578,-586.870057,0.00019999,2]
[408197122,1773213042587,-500.0,0.00019999,2]
[408197123,1773213042600,-500.0,0.00019999,2]
[408197124,1773213042610,-503.86249418,0.00019999,2]
[408197125,1773213042619,-500.0,0.00019999,2]
[408197126,1773213042628,-490.0,0.00019999,2]
[408197127,1773213042638,-500.0,0.00019999,2]
[408197128,1773213042647,-500.0,0.00019999,2]
[408197129,1773213042656,-500.0,0.00019999,2]
[408197130,1773213042666,-500.0,0.00019999,2]
[408197131,1773213042677,-500.0,0.00019999,2]
[408197132,1773213042687,-500.0,0.00019999,2]
[408197133,1773213042697,-500.0,0.00019999,2]
[408197134,1773213042706,-513.03817385,0.00019999,2]
[408197135,1773213042717,-500.0,0.00019999,2]
[408197137,1773213042726,-500.0,0.00019999,2]
[408197138,1773213042735,-605.55782896,0.00019999,2]
[408197139,1773213042744,-500.0,0.00019999,2]
[408197140,1773213042753,-500.0,0.00019999,2]
[408197141,1773213042763,-500.0,0.00019999,2]
[408197142,1773213042773,-500.0,0.00019999,2]
[408197143,1773213042783,-500.0,0.00019999,2]
[408197145,1773213042793,-500.0,0.00019999,2]
[408197147,1773213042803,-500.0,0.00019999,2]
[408197149,1773213042813,-500.0,0.00019999,2]
[408197151,1773213042822,-500.0,0.00019999,2]
[408197152,1773213042832,-507.08615799,0.00019999,2]
[408197153,1773213042842,-981.54307946,0.00019999,2]
[408197155,1773213042851,-183.07713092,0.00019999,2]
[408197156,1773213042860,-420.65875141,0.00019999,2]
[408197157,1773213042869,-500.0,0.00019999,2]
[408197158,1773213042879,-468.17852206,0.00019999,2]
[408197159,1773213042889,-3463.0,0.0002,2]
[408197160,1773213042898,-502479.54827466,0.0002,2]
[408197161,1773213042907,-592.32,0.0002,2]
[408197162,1773213042916,-1793.32906339,0.0002,2]
[408197163,1773213042926,-418.84062553,0.0002,2]
[408197164,1773213042935,-389329.62746736,0.0002,2]
[408197165,1773213042948,-749.72188916,0.0002,2]
[408197166,1773213042959,-26796.87553852,0.0002,2]
[408197167,1773213042970,-1155.90966815,0.0002,2]
[408197205,1773213045937,-582.17937696,0.00018941,2]
[408197206,1773213045947,-360.72513598,0.000199,2]
[408197207,1773213045956,-3040.74548706,0.0002,2]
[408197208,1773213046334,-76925.92025338,0.0002,2]
[408197215,1773213067581,10000.01,7.945e-05,2]
[408197216,1773213067609,2016.543474,7.945e-05,2]
[408197219,1773213136581,500.0,8.6e-05,2]
[408197221,1773213138726,500.0,8.6e-05,2]
[408197222,1773213139225,500.0,8.6e-05,2]
[408197223,1773213139743,500.0,8.6e-05,2]
[408197224,1773213140230,500.0,8.6e-05,2]
[408197225,1773213140398,666.81615069,8.6e-05,2]
[408197226,1773213140951,500.0,8.6e-05,2]
[408197227,1773213144045,737.20945321,8.6e-05,2]
[408197228,1773213145156,500.0,8.6e-05,2]
[408197229,1773213148712,500.0,8.6e-05,2]
[408197230,1773213149275,500.0,8.6e-05,2]
[408197231,1773213149593,500.0,8.6e-05,2]
[408197232,1773213149795,500.0,8.6e-05,2]
[408197233,1773213150234,500.0,8.6e-05,2]
[408197234,1773213150282,579.4409221,8.6e-05,2]
[408197235,1773213150305,47.44851089,8.6e-05,2]
[408197236,1773213150725,500.0,8.6e-05,2]
[408197237,1773213151200,500.0,8.6e-05,2]
[408197238,1773213151679,690.01546365,8.6e-05,2]
[408197239,1773213154149,660.25289702,8.6e-05,2]
[408197240,1773213156206,500.0,8.6e-05,2]
[408197241,1773213156623,500.0,8.6e-05,2]
[408197242,1773213157112,500.0,8.6e-05,2]
[408197250,1773213362757,182.74,0.0002,120]
[408197251,1773213376211,-161.0,0.0001354,2]
[408197252,1773213376232,-162.0,0.0001354,2]
[408197253,1773213376253,-163.0,0.0001354,2]
[408197254,1773213376275,-47.40102935,0.00014027,2]
[408197255,1773213377248,-202.59897065,0.00014027,2]
[408197256,1773213377269,-250.0,0.00014493,2]
[408197257,1773213377290,-80.8020587,0.00014514,2]
[408197258,1773213379616,-533.40102935,0.00014514,2]
[408197259,1773213382992,-533.40102935,0.00014514,2]
[408197260,1773213388380,-533.40102935,0.00014514,2]
[408197262,1773213401130,-322.19477945,0.00014514,2]
[408197263,1773213401152,-162.0,0.00014514,3]
[408197264,1773213401174,-49.2062499,0.00014894,2]
[408197265,1773213411270,-200.7937501,0.00014894,2]
[408197266,1773213411296,-246.2267,0.000149,2]
[408197267,1773213411320,-86.38057925,0.000149,2]
[408197268,1773213427905,-162.0,0.0001354,2]
[408197269,1773213427928,-200.7937501,0.000149,2]
[408197270,1773213427965,164.0,0.0001354,2]
[408197272,1773213447217,6.60727925,9.9e-05,2]
[408197273,1773213447240,493.39272075,9.9e-05,2]
[408197274,1773213447384,40.0083086,9.9e-05,2]
[408197275,1773213447411,459.9916914,9.9e-05,2]
[408197276,1773213447864,500.0,9.9e-05,2]
[408197277,1773213448017,500.0,9.9e-05,2]
[408197278,1773213448571,500.0,9.9e-05,2]
[408197279,1773213449400,500.0,9.9e-05,2]
[408197280,1773213456067,500.0,9.9e-05,2]
[408197281,1773213456658,500.0,9.9e-05,2]
[408197283,1773213486856,162.0,0.00013429,2]
[408197284,1773213506728,-250.0,0.00014949,2]
[408197285,1773213506752,-297.57310934,0.0001495,2]
[408197286,1773213506774,-188.67257488,0.0001495,2]
[408197287,1773213506795,-1200.0,0.00014999,2]
[408197288,1773213506818,-188.67257488,0.00015,2]
[408197293,1773213603730,260.0,0.0001343,2]
[408197373,1773214033862,151.0,0.0001343,2]
[408197374,1773214034507,151.0,0.0001343,2]
[408197375,1773214035132,151.0,0.0001343,2]
[408197376,1773214035668,500.0,0.0001343,2]
[408197377,1773214035782,151.0,0.0001343,2]
[408197379,1773214036146,500.0,0.0001343,2]
[408197380,1773214036395,151.0,0.0001343,2]
[408197381,1773214036747,519.676586,0.0001343,2]
[408197382,1773214036806,202.38527942,0.0001343,2]
[408197383,1773214037018,151.0,0.0001343,2]
[408197384,1773214037653,151.0,0.0001343,2]
[408197385,1773214038058,151.0,0.0001343,2]
[408197386,1773214038285,151.0,0.0001343,2]
[408197387,1773214038684,151.0,0.0001343,2]
[408197388,1773214038915,151.0,0.0001343,2]
[408197389,1773214039536,151.0,0.0001343,2]
[408197390,1773214039803,151.0,0.0001343,2]
[408197391,1773214040432,177.95839125,0.0001343,2]
[408197392,1773214040622,151.0,0.0001343,2]
[408197393,1773214048927,500.0,8.6e-05,2]
[408197394,1773214049420,500.0,0.0001343,2]
[408197395,1773214050033,500.0,0.0001343,2]
[408197396,1773214050838,523.57937133,0.0001343,2]
[408197410,1773214203699,260.0,0.0001343,2]
[408197421,1773214232201,-162.0,0.0001343,2]
[408197422,1773214232210,-161.0,0.0001343,2]
[408197423,1773214232219,-250.0,0.00013779,2]
[408197424,1773214232229,-173.79385884,0.0001429,2]
[408197425,1773214232238,-1998.570608,0.00014698,2]
[408197426,1773214232247,-300.0,0.00014772,2]
[408197427,1773214232256,-738.0,0.00014772,2]
[408197428,1773214232265,-150.0,0.00014772,2]
[408197429,1773214232276,-250.0,0.00014773,2]
[408197430,1773214232286,-2001.20791963,0.00014773,2]
[408197431,1773214232295,-193.0,0.00014773,2]
[408197432,1773214232304,-188.70030793,0.00014773,2]
[408197433,1773214232313,-500.0,0.00014773,2]
[408197435,1773214232323,-1822.59628865,0.00014773,2]
[408197436,1773214232332,-150.15274684,0.00014773,2]
[408197437,1773214232342,-250.0,0.00014773,2]
[408197438,1773214232354,-500.0,0.00015,30]
[408197439,1773214232364,-500.0,0.00015,30]
[408197440,1773214232373,-500.0,0.00015,30]
[408197441,1773214232382,-500.0,0.00015,30]
[408197442,1773214232392,-500.0,0.00015,30]
[408197443,1773214232401,-500.0,0.00015,30]
[408197444,1773214232411,-500.0,0.00015,30]
[408197445,1773214232420,-500.0,0.00015,30]
[408197446,1773214232430,-862.33165999,0.00015,30]
[408197447,1773214232439,-500.0,0.00015,30]
[408197448,1773214232448,-500.0,0.00015,30]
[408197449,1773214232458,-500.0,0.00015,30]
[408197450,1773214232467,-500.0,0.00015,30]
[408197451,1773214232477,-500.0,0.00015,30]
[408197452,1773214232487,-500.0,0.00015,30]
[408197453,1773214232497,-500.0,0.00015,30]
[408197454,1773214232506,-502.76291619,0.00015,30]
[408197455,1773214232516,-500.0,0.00015,30]
[408197456,1773214232525,-881.14285643,0.00015,30]
[408197457,1773214232534,-500.0,0.00015,30]
[408197458,1773214232544,-500.0,0.00015,30]
[408197459,1773214232553,-500.0,0.00015,30]
[408197460,1773214232564,-500.0,0.00015,30]
[408197461,1773214232574,-500.0,0.00015,30]
[408197462,1773214232583,-500.0,0.00015,30]
[408197463,1773214232592,-667.50874734,0.00015,30]
[408197464,1773214232602,-1629.57,0.00015208,2]
[408197465,1773214232611,-150.0,0.00015895,2]
[408197466,1773214232620,-204.06136,0.00016036,7]
[408197467,1773214232630,-500.0,0.00016115,2]
[408197468,1773214232639,-500.0,0.00016115,2]
[408197469,1773214232648,-500.0,0.00016115,2]
[408197470,1773214232657,-299.99,0.00016116,4]
[408197471,1773214232666,-150.99,0.00016116,2]
[408197472,1773214232676,-9999.99,0.00016116,2]
[408197473,1773214232685,-9999.99,0.00016116,2]
[408197474,1773214232695,-3622.77,0.00016116,2]
[408197475,1773214232705,-420.0,0.00016171,2]
[408197476,1773214232716,-501.68321404,0.00016173,2]
[408197477,1773214232727,-500.59506697,0.00016173,2]
[408197478,1773214232736,-500.0,0.00016173,2]
[408197479,1773214232747,-500.0,0.00016173,2]